[Event "Championnat d'Europe de Blitz"]
[Date "2024.12.09"]
[White "Sivan, Yaacov"]
[Black "Zajic, Milan"]
[WhiteElo "2273"]
[BlackElo "2392"]
[Round "2.50"]
[Result "0-1"]
[TimeControl "180+2"]

1. e4 {[%clk 00:03:03]} g6 {[%emt 00:00:02] [%clk 00:03:03]} 2. d4 {[%emt
00:00:04] [%clk 00:03:00]} Bg7 {[%emt 00:00:02] [%clk 00:03:04]} 3. Nc3 {[%emt
00:00:02] [%clk 00:03:00]} a6 {[%emt 00:00:01] [%clk 00:03:06]} 4. Be3 {[%emt
00:00:05] [%clk 00:02:56]} b5 {[%emt 00:00:02] [%clk 00:03:06]} 5. Qd2 {[%emt
00:00:03] [%clk 00:02:55]} Bb7 {[%emt 00:00:01] [%clk 00:03:07]} 6. f3 {[%emt
00:00:01] [%clk 00:02:55]} d6 {[%emt 00:00:04] [%clk 00:03:06]} 7. O-O-O {[%emt
00:00:11] [%clk 00:02:46]} Nd7 {[%emt 00:00:03] [%clk 00:03:05]} 8. Kb1 {[%emt
00:00:08] [%clk 00:02:40]} b4 {[%emt 00:00:20] [%clk 00:02:47]} 9. Nce2 {[%emt
00:00:05] [%clk 00:02:36]} a5 {[%emt 00:00:09] [%clk 00:02:42]} 10. g4 {[%emt
00:00:10] [%clk 00:02:27]} e6 {[%emt 00:00:19] [%clk 00:02:25]} 11. h4 {[%emt
00:00:09] [%clk 00:02:20]} h6 {[%emt 00:00:02] [%clk 00:02:25]} 12. g5 {[%emt
00:00:35] [%clk 00:01:46]} d5 {[%emt 00:00:17] [%clk 00:02:11]} 13. exd5 {[%emt
00:00:29] [%clk 00:01:19]} Bxd5 {[%emt 00:00:04] [%clk 00:02:09]} 14. gxh6
{[%emt 00:00:10] [%clk 00:01:11]} Nxh6 {[%emt 00:00:26] [%clk 00:01:45]} 15. Nf4
{[%emt 00:00:05] [%clk 00:01:07]} Bb7 {[%emt 00:00:23] [%clk 00:01:25]} 16. Bd3
{[%emt 00:00:18] [%clk 00:00:51]} Nf5 {[%emt 00:00:04] [%clk 00:01:23]} 17. Bxf5
{[%emt 00:00:06] [%clk 00:00:47]} gxf5 {[%emt 00:00:17] [%clk 00:01:08]} 18. h5
{[%clk 00:00:48]} Nb6 {[%emt 00:00:36] [%clk 00:00:34]} 19. Qe2 {[%emt 00:00:05]
[%clk 00:00:45]} Qd7 {[%emt 00:00:08] [%clk 00:00:27]} 20. Ngh3 {[%emt 00:00:06]
[%clk 00:00:42]} O-O-O {[%emt 00:00:02] [%clk 00:00:27]} 21. Nf2 {[%emt
00:00:17] [%clk 00:00:27]} Kb8 {[%emt 00:00:15] [%clk 00:00:14]} 22. N2d3 {[%emt
00:00:01] [%clk 00:00:29]} Qb5 {[%clk 00:00:15]} 23. Qf2 {[%emt 00:00:08] [%clk
00:00:22]} Bh6 {[%emt 00:00:13] [%clk 00:00:05]} 24. Nc5 {[%emt 00:00:01] [%clk
00:00:23]} Na4 {[%emt 00:00:03] [%clk 00:00:04]} 25. Nxa4 {[%emt 00:00:07] [%clk
00:00:18]} Qxa4 {[%emt 00:00:01] [%clk 00:00:05]} 26. d5 {[%emt 00:00:03] [%clk
00:00:17]} Bxf4 {[%clk 00:00:06]} 27. Bxf4 {[%emt 00:00:01] [%clk 00:00:18]}
Bxd5 {[%emt 00:00:02] [%clk 00:00:06]} 28. b3 {[%emt 00:00:01] [%clk 00:00:19]}
Qc6 {[%clk 00:00:08]} 29. Rd3 {[%emt 00:00:13] [%clk 00:00:07]} f6 {[%emt
00:00:03] [%clk 00:00:07]} 30. h6 {[%emt 00:00:04] [%clk 00:00:05]} e5 {[%clk
00:00:08]} 31. Bc1 {[%clk 00:00:06]} f4 {[%emt 00:00:01] [%clk 00:00:10]} 32.
Bb2 {[%emt 00:00:04] [%clk 00:00:05]} Be6 {[%emt 00:00:02] [%clk 00:00:09]} 33.
Ka1 {[%emt 00:00:03] [%clk 00:00:05]} Rxd3 {[%clk 00:00:10]} 34. cxd3 {[%emt
00:00:01] [%clk 00:00:06]} Bd5 {[%emt 00:00:06] [%clk 00:00:05]} 35. Rh3 {[%emt
00:00:06]} Qe6 {[%emt 00:00:01]} 36. Qg2 {[%emt 00:00:04] [%clk 00:00:00]} Qf5
{[%emt 00:00:04] [%clk 00:00:05]} 37. Rh1 {[%emt 00:00:04] [%clk 00:00:00]} Rh7
{[%emt 00:00:01] [%clk 00:00:05]} 38. d4 {[%emt 00:00:02] [%clk 00:00:00]} 0-1

[Site "Europe Echecs"]

[Event "Championnat d'Europe de Blitz"]
[Date "2024.12.09"]
[White "Costachi, Mihnea"]
[Black "Mueller, Magnus"]
[WhiteElo "2464"]
[BlackElo "2166"]
[Round "2.51"]
[Result "1-0"]
[TimeControl "180+2"]

1. d4 {[%clk 00:03:03]} Nf6 {[%emt 00:00:02] [%clk 00:03:03]} 2. c4 {[%emt
00:00:01] [%clk 00:03:04]} e6 {[%clk 00:03:04]} 3. Nf3 {[%emt 00:00:01] [%clk
00:03:05]} d5 {[%emt 00:00:02] [%clk 00:03:05]} 4. Nc3 {[%emt 00:00:02] [%clk
00:03:05]} c6 {[%emt 00:00:16] [%clk 00:02:50]} 5. cxd5 {[%emt 00:00:06] [%clk
00:03:02]} exd5 {[%emt 00:00:02] [%clk 00:02:50]} 6. Qc2 {[%clk 00:03:03]} g6
{[%emt 00:00:14] [%clk 00:02:39]} 7. h3 {[%emt 00:00:01] [%clk 00:03:04]} Bf5
{[%emt 00:00:07] [%clk 00:02:34]} 8. Qb3 {[%emt 00:00:01] [%clk 00:03:04]} Qb6
{[%emt 00:00:02] [%clk 00:02:34]} 9. g4 {[%emt 00:00:05] [%clk 00:03:01]} Be6
{[%emt 00:00:02] [%clk 00:02:34]} 10. Qc2 {[%emt 00:00:13] [%clk 00:02:50]} Nbd7
{[%emt 00:00:27] [%clk 00:02:09]} 11. Bf4 {[%emt 00:00:03] [%clk 00:02:49]} c5
{[%emt 00:00:07] [%clk 00:02:05]} 12. e3 {[%emt 00:00:04] [%clk 00:02:46]} c4
{[%emt 00:00:42] [%clk 00:01:26]} 13. Bg2 {[%emt 00:00:08] [%clk 00:02:40]} Bb4
{[%emt 00:00:09] [%clk 00:01:19]} 14. O-O {[%emt 00:00:03] [%clk 00:02:38]} Bxc3
{[%emt 00:00:03] [%clk 00:01:18]} 15. bxc3 {[%emt 00:00:03] [%clk 00:02:37]} O-O
{[%emt 00:00:10] [%clk 00:01:11]} 16. Rab1 {[%emt 00:00:01] [%clk 00:02:38]} Qc6
{[%emt 00:00:01] [%clk 00:01:11]} 17. Rfd1 {[%emt 00:00:12] [%clk 00:02:29]} h5
{[%emt 00:00:01] [%clk 00:01:12]} 18. Ne5 {[%emt 00:00:03] [%clk 00:02:28]} Nxe5
{[%emt 00:00:05] [%clk 00:01:09]} 19. dxe5 {[%emt 00:00:01] [%clk 00:02:29]} Ne4
{[%emt 00:00:06] [%clk 00:01:06]} 20. Bxe4 {[%emt 00:00:07] [%clk 00:02:23]}
dxe4 {[%clk 00:01:07]} 21. Rd6 {[%emt 00:00:02] [%clk 00:02:24]} Qc8 {[%emt
00:00:02] [%clk 00:01:07]} 22. gxh5 {[%emt 00:00:40] [%clk 00:01:46]} Bxh3
{[%emt 00:00:07] [%clk 00:01:01]} 23. e6 {[%emt 00:00:11] [%clk 00:01:38]} Bxe6
{[%emt 00:00:37] [%clk 00:00:25]} 24. hxg6 {[%emt 00:00:09] [%clk 00:01:32]} Bh3
{[%emt 00:00:01] [%clk 00:00:26]} 25. Qxe4 {[%emt 00:00:18] [%clk 00:01:16]}
Qg4+ {[%emt 00:00:02] [%clk 00:00:25]} 26. Kh2 {[%emt 00:00:02] [%clk 00:01:17]}
Qh5 {[%emt 00:00:01] [%clk 00:00:26]} 27. gxf7+ {[%emt 00:00:06] [%clk
00:01:13]} Rxf7 {[%clk 00:00:27]} 28. Qg6+ {[%emt 00:00:08] [%clk 00:01:06]}
Qxg6 {[%emt 00:00:04] [%clk 00:00:25]} 29. Rxg6+ {[%clk 00:01:07]} 1-0

[Site "Europe Echecs"]

[Event "Championnat d'Europe de Blitz"]
[Date "2024.12.09"]
[White "Martins, Diogo Faria Oliveira"]
[Black "Dragnev, Valentin"]
[WhiteElo "1961"]
[BlackElo "2563"]
[Round "2.52"]
[Result "0-1"]
[TimeControl "180+2"]

1. e4 {[%clk 00:03:03]} c6 {[%emt 00:00:02] [%clk 00:03:03]} 2. d4 {[%emt
00:00:01] [%clk 00:03:04]} d5 {[%emt 00:00:01] [%clk 00:03:04]} 3. f3 {[%emt
00:00:01] [%clk 00:03:05]} e6 {[%emt 00:00:02] [%clk 00:03:04]} 4. Nc3 {[%emt
00:00:01] [%clk 00:03:06]} Bb4 {[%emt 00:00:01] [%clk 00:03:04]} 5. Bf4 {[%emt
00:00:02] [%clk 00:03:06]} Ne7 {[%emt 00:00:05] [%clk 00:03:01]} 6. Qd3 {[%emt
00:00:04] [%clk 00:03:03]} b6 {[%emt 00:00:03] [%clk 00:03:01]} 7. Nge2 {[%emt
00:00:02] [%clk 00:03:03]} O-O {[%emt 00:00:06] [%clk 00:02:57]} 8. O-O-O {[%emt
00:00:01] [%clk 00:03:04]} Bb7 {[%emt 00:00:10] [%clk 00:02:49]} 9. Kb1 {[%emt
00:00:12] [%clk 00:02:54]} c5 {[%emt 00:00:09]} 10. exd5 {[%clk 00:02:51]} exd5
{[%emt 00:00:02] [%clk 00:02:45]} 11. dxc5 {[%emt 00:00:05] [%clk 00:02:47]}
bxc5 {[%emt 00:00:02] [%clk 00:02:46]} 12. Bg5 {[%emt 00:00:25] [%clk 00:02:25]}
f6 {[%emt 00:00:05] [%clk 00:02:43]} 13. Bh4 {[%clk 00:02:26]} Nd7 {[%emt
00:00:13] [%clk 00:02:32]} 14. Nf4 {[%emt 00:00:18] [%clk 00:02:10]} Ne5 {[%emt
00:00:02] [%clk 00:02:32]} 15. Qb5 {[%emt 00:00:11] [%clk 00:02:01]} Qd6 {[%emt
00:01:07] [%clk 00:01:26]} 16. Ncxd5 {[%emt 00:00:18] [%clk 00:01:45]} Nxd5
{[%emt 00:00:18] [%clk 00:01:11]} 17. Nxd5 {[%emt 00:00:01] [%clk 00:01:45]}
Bxd5 {[%emt 00:00:02] [%clk 00:01:11]} 18. Bc4 {[%emt 00:00:04] [%clk 00:01:43]}
Nxc4 {[%emt 00:00:05] [%clk 00:01:08]} 19. Qxc4 {[%emt 00:00:28] [%clk
00:01:18]} Bxc4 {[%emt 00:00:01] [%clk 00:01:09]} 20. Rxd6 {[%emt 00:00:02]
[%clk 00:01:18]} Rad8 {[%emt 00:00:07] [%clk 00:01:03]} 21. Rhd1 {[%clk
00:01:19]} Rxd6 {[%emt 00:00:03] [%clk 00:01:02]} 22. Rxd6 {[%clk 00:01:20]} Ba5
{[%emt 00:00:11] [%clk 00:00:54]} 23. b3 {[%emt 00:00:09] [%clk 00:01:13]} Bf7
{[%emt 00:00:14] [%clk 00:00:41]} 24. Bf2 {[%emt 00:00:04] [%clk 00:01:11]} Bb6
{[%emt 00:00:07] [%clk 00:00:37]} 25. a4 {[%emt 00:00:09] [%clk 00:01:04]} Rb8
{[%emt 00:00:09] [%clk 00:00:29]} 26. a5 {[%emt 00:00:04] [%clk 00:01:03]} Bxa5
{[%emt 00:00:04] [%clk 00:00:27]} 27. Bxc5 {[%clk 00:01:03]} Bb6 {[%emt
00:00:05] [%clk 00:00:25]} 28. Ba3 {[%emt 00:00:11] [%clk 00:00:54]} h5 {[%emt
00:00:04] [%clk 00:00:22]} 29. Rd7 {[%emt 00:00:02] [%clk 00:00:54]} Rd8 {[%emt
00:00:04] [%clk 00:00:20]} 30. Rxd8+ {[%emt 00:00:10] [%clk 00:00:47]} Bxd8
{[%clk 00:00:21]} 31. c4 {[%emt 00:00:02] [%clk 00:00:47]} Bg6+ {[%emt 00:00:04]
[%clk 00:00:18]} 32. Kb2 {[%emt 00:00:02] [%clk 00:00:47]} Bc7 {[%emt 00:00:02]
[%clk 00:00:19]} 33. b4 {[%emt 00:00:02] [%clk 00:00:47]} Bxh2 {[%emt 00:00:01]
[%clk 00:00:19]} 34. c5 {[%emt 00:00:01] [%clk 00:00:48]} Be8 {[%emt 00:00:03]
[%clk 00:00:19]} 35. Kc3 {[%clk 00:00:49]} Kf7 {[%emt 00:00:04] [%clk 00:00:17]}
36. Kd4 {[%clk 00:00:50]} Ke6 {[%emt 00:00:01] [%clk 00:00:18]} 37. Bc1 {[%emt
00:00:08] [%clk 00:00:44]} Be5+ {[%emt 00:00:02] [%clk 00:00:17]} 38. Kc4 {[%emt
00:00:02] [%clk 00:00:44]} a6 {[%clk 00:00:19]} 39. Be3 {[%emt 00:00:07] [%clk
00:00:39]} Bb5+ {[%emt 00:00:01] [%clk 00:00:20]}

[Site "Europe Echecs"]

[Event "Championnat d'Europe de Blitz"]
[Date "2024.12.09"]
[White "Boyer, Mahel"]
[Black "Plesec, Damjan"]
[WhiteElo "2526"]
[BlackElo "2206"]
[Round "2.53"]
[Result "1-0"]
[TimeControl "180+2"]

1. Nf3 {[%emt 00:00:01] [%clk 00:03:03]} Nf6 {[%emt 00:00:02] [%clk 00:03:02]}
2. c4 {[%emt 00:00:03] [%clk 00:03:02]} d6 {[%emt 00:00:02] [%clk 00:03:02]} 3.
d4 {[%emt 00:00:02] [%clk 00:03:02]} Nbd7 {[%emt 00:00:06] [%clk 00:02:59]} 4.
g3 {[%emt 00:00:03] [%clk 00:03:00]} e5 {[%emt 00:00:04] [%clk 00:02:56]} 5. Bg2
{[%emt 00:00:02] [%clk 00:03:01]} g6 {[%emt 00:00:12] [%clk 00:02:46]} 6. O-O
{[%emt 00:00:02] [%clk 00:03:01]} Bg7 {[%clk 00:02:48]} 7. Nc3 {[%emt 00:00:01]
[%clk 00:03:02]} O-O {[%emt 00:00:02] [%clk 00:02:48]} 8. e4 {[%emt 00:00:02]
[%clk 00:03:02]} c6 {[%emt 00:00:10] [%clk 00:02:41]} 9. h3 {[%emt 00:00:05]
[%clk 00:02:58]} Qc7 {[%emt 00:00:02] [%clk 00:02:41]} 10. Be3 {[%emt 00:00:04]
[%clk 00:02:55]} Re8 {[%emt 00:00:13] [%clk 00:02:32]} 11. d5 {[%emt 00:00:01]
[%clk 00:02:56]} c5 {[%emt 00:00:14] [%clk 00:02:20]} 12. a3 {[%clk 00:02:56]}
a6 {[%emt 00:00:01] [%clk 00:02:21]} 13. Qd3 {[%emt 00:00:17] [%clk 00:02:41]}
b6 {[%emt 00:00:03] [%clk 00:02:20]} 14. b4 {[%clk 00:02:42]} Bb7 {[%emt
00:00:12] [%clk 00:02:10]} 15. Rfc1 {[%emt 00:00:02] [%clk 00:02:42]} Reb8
{[%emt 00:00:08] [%clk 00:02:04]} 16. Na4 {[%emt 00:00:02] [%clk 00:02:42]} Bc8
{[%emt 00:00:07] [%clk 00:01:59]} 17. Rab1 {[%emt 00:00:01] [%clk 00:02:42]} Nf8
{[%emt 00:00:04] [%clk 00:01:57]} 18. bxc5 {[%emt 00:00:12] [%clk 00:02:33]}
bxc5 {[%emt 00:00:03] [%clk 00:01:56]} 19. Nd2 {[%emt 00:01:14] [%clk 00:01:20]}
Bd7 {[%emt 00:00:09] [%clk 00:01:50]} 20. Nc3 {[%emt 00:00:02] [%clk 00:01:21]}
Qa5 {[%emt 00:00:10] [%clk 00:01:41]} 21. Qc2 {[%emt 00:00:57] [%clk 00:00:26]}
Ne8 {[%emt 00:00:04] [%clk 00:01:39]} 22. Rb3 {[%emt 00:00:06] [%clk 00:00:22]}
Ba4 {[%emt 00:00:51] [%clk 00:00:51]} 23. Rxb8 {[%emt 00:00:05] [%clk 00:00:18]}
Bxc2 {[%emt 00:00:01] [%clk 00:00:51]} 24. Rxa8 {[%emt 00:00:02] [%clk
00:00:19]} Qxc3 {[%emt 00:00:01] [%clk 00:00:52]} 25. Rxe8 {[%emt 00:00:02]
[%clk 00:00:19]} f6 {[%emt 00:00:08] [%clk 00:00:46]} 26. Rb8 {[%emt 00:00:05]
[%clk 00:00:17]} f5 {[%emt 00:00:13] [%clk 00:00:34]} 27. Rb3 {[%emt 00:00:03]
[%clk 00:00:15]} Bxb3 {[%emt 00:00:07] [%clk 00:00:29]} 28. Rxc3 {[%emt
00:00:02] [%clk 00:00:16]} Ba4 {[%clk 00:00:31]} 29. Rc1 {[%emt 00:00:04] [%clk
00:00:14]} 1-0

[Site "Europe Echecs"]

[Event "Championnat d'Europe de Blitz"]
[Date "2024.12.09"]
[White "Shapkaroski, Goce"]
[Black "Papasimakopoulos, Alexandros"]
[WhiteElo "2137"]
[BlackElo "2379"]
[Round "2.54"]
[Result "0-1"]
[TimeControl "180+2"]

1. e4 {[%emt 00:00:02] [%clk 00:03:02]} e6 {[%emt 00:00:01] [%clk 00:03:04]} 2.
d4 {[%emt 00:00:01] [%clk 00:03:02]} d5 {[%clk 00:03:05]} 3. Nc3 {[%emt
00:00:04] [%clk 00:03:00]} Bb4 {[%emt 00:00:01] [%clk 00:03:06]} 4. exd5 {[%emt
00:00:02] [%clk 00:03:01]} exd5 {[%emt 00:00:01] [%clk 00:03:07]} 5. Bd3 {[%emt
00:00:02] [%clk 00:03:00]} Nc6 {[%emt 00:00:01] [%clk 00:03:08]} 6. Nge2 {[%emt
00:00:01] [%clk 00:03:01]} Nge7 {[%emt 00:00:03] [%clk 00:03:08]} 7. O-O {[%emt
00:00:11] [%clk 00:02:51]} Bf5 {[%emt 00:00:01] [%clk 00:03:09]} 8. a3 {[%emt
00:00:13] [%clk 00:02:40]} Ba5 {[%emt 00:00:07] [%clk 00:03:04]} 9. b4 {[%emt
00:00:38] [%clk 00:02:04]} Bb6 {[%emt 00:00:01] [%clk 00:03:04]} 10. Bb5 {[%clk
00:02:05]} O-O {[%emt 00:00:07] [%clk 00:03:00]} 11. Be3 {[%clk 00:02:06]} a6
{[%emt 00:00:04] [%clk 00:02:58]} 12. Ba4 {[%clk 00:02:07]} Bg6 {[%emt 00:00:11]
[%clk 00:02:48]} 13. Bb3 {[%emt 00:00:02] [%clk 00:02:08]} Nb8 {[%emt 00:00:05]
[%clk 00:02:44]} 14. Na4 {[%emt 00:00:07] [%clk 00:02:04]} Ba7 {[%emt 00:00:03]
[%clk 00:02:43]} 15. Nc5 {[%emt 00:00:02] [%clk 00:02:04]} Bxc5 {[%emt 00:00:09]
[%clk 00:02:36]} 16. dxc5 {[%emt 00:00:21] [%clk 00:01:46]} c6 {[%clk 00:02:36]}
17. Nd4 {[%emt 00:00:04] [%clk 00:01:44]} Nd7 {[%emt 00:00:02] [%clk 00:02:36]}
18. c4 {[%emt 00:00:05] [%clk 00:01:41]} dxc4 {[%emt 00:00:13] [%clk 00:02:25]}
19. Bxc4 {[%emt 00:00:02] [%clk 00:01:41]} Ne5 {[%emt 00:00:02] [%clk 00:02:24]}
20. Bb3 {[%emt 00:00:25] [%clk 00:01:19]} Nd5 {[%emt 00:00:01] [%clk 00:02:25]}
21. Qd2 {[%emt 00:00:45] [%clk 00:00:36]} Nxe3 {[%emt 00:00:11] [%clk 00:02:15]}
22. Qxe3 {[%emt 00:00:01] [%clk 00:00:37]} Re8 {[%emt 00:00:02] [%clk 00:02:16]}
23. Qc3 {[%emt 00:00:02] [%clk 00:00:36]} Qh4 {[%emt 00:00:05] [%clk 00:02:14]}
24. Nf3 {[%emt 00:00:08] [%clk 00:00:31]} Nxf3+ {[%emt 00:00:03] [%clk
00:02:13]} 25. Qxf3 {[%clk 00:00:32]} a5 {[%emt 00:00:02] [%clk 00:02:14]} 26.
g3 {[%emt 00:00:06] [%clk 00:00:27]} Qe4 {[%emt 00:00:13] [%clk 00:02:03]} 27.
Qxe4 {[%emt 00:00:02] [%clk 00:00:27]} Rxe4 {[%clk 00:02:04]} 28. Bc2 {[%emt
00:00:07] [%clk 00:00:22]} Rc4 {[%clk 00:02:05]} 29. Bxg6 {[%emt 00:00:03] [%clk
00:00:22]} hxg6 {[%emt 00:00:01] [%clk 00:02:06]} 30. Rfc1 {[%emt 00:00:03]
[%clk 00:00:20]} Rxc1+ {[%emt 00:00:23] [%clk 00:01:45]} 31. Rxc1 {[%clk
00:00:22]} axb4 {[%emt 00:00:02] [%clk 00:01:46]} 32. axb4 {[%clk 00:00:22]} Ra4
{[%emt 00:00:01] [%clk 00:01:47]} 33. Rc4 {[%clk 00:00:23]} f6 {[%emt 00:00:09]
[%clk 00:01:39]} 34. Rd4 {[%emt 00:00:04] [%clk 00:00:22]} g5 {[%emt 00:00:01]
[%clk 00:01:40]} 35. Kg2 {[%emt 00:00:02] [%clk 00:00:22]} Kh7 {[%emt 00:00:03]
[%clk 00:01:39]} 36. h4 {[%emt 00:00:02] [%clk 00:00:22]} gxh4 {[%emt 00:00:01]
[%clk 00:01:40]} 37. Rxh4+ {[%clk 00:00:23]} Kg6 {[%clk 00:01:41]} 38. Rd4
{[%emt 00:00:02] [%clk 00:00:23]} Kf5 {[%emt 00:00:04] [%clk 00:01:39]} 39. f4
{[%emt 00:00:15] [%clk 00:00:10]} g5 {[%emt 00:00:01] [%clk 00:01:39]} 40. fxg5
{[%emt 00:00:05] [%clk 00:00:07]} fxg5 {[%clk 00:01:40]} 41. Kf3 {[%emt
00:00:06] [%clk 00:00:04]} g4+ {[%emt 00:00:04] [%clk 00:01:38]} 42. Ke2 {[%clk
00:00:05]} Ra2+ {[%emt 00:00:01] [%clk 00:01:39]} 43. Rd2 {[%emt 00:00:03] [%clk
00:00:04]} Ra3 {[%emt 00:00:06] [%clk 00:01:34]} 44. Rd3 {[%clk 00:00:06]} Ra2+
{[%emt 00:00:11] [%clk 00:01:25]} 45. Rd2 {[%clk 00:00:07]} Rxd2+ {[%emt
00:00:21] [%clk 00:01:06]} 46. Kxd2 {[%emt 00:00:01] [%clk 00:00:08]} Ke4 {[%clk
00:01:07]} 47. Ke2 {[%emt 00:00:03] [%clk 00:00:08]} Kd4 {[%emt 00:00:01] [%clk
00:01:09]} 48. Kd2 {[%emt 00:00:01] [%clk 00:00:08]} Kc4 {[%emt 00:00:02] [%clk
00:01:09]} 49. Ke3 {[%clk 00:00:09]} Kxb4 {[%clk 00:01:11]} 50. Kf4 {[%clk
00:00:11]} Kxc5 {[%emt 00:00:02] [%clk 00:01:11]} 51. Kxg4 {[%clk 00:00:12]} b5
{[%emt 00:00:03] [%clk 00:01:10]} 52. Kf4 {[%emt 00:00:03] [%clk 00:00:12]} b4
{[%emt 00:00:01] [%clk 00:01:11]} 53. g4 {[%clk 00:00:13]} b3 {[%emt 00:00:11]
[%clk 00:01:03]} 54. g5 {[%clk 00:00:15]} b2 {[%emt 00:00:02] [%clk 00:01:03]}
55. g6 {[%clk 00:00:16]} b1=Q {[%emt 00:00:04] [%clk 00:01:02]} 0-1

[Site "Europe Echecs"]